bitfinex-derivatives/quotes_ETHF0:USTF0_20251216
["timestamp","ask_amount","ask_price","bid_price","bid_amount"]
[1765882668399,0.00247906,2952.3,2952.2,3.75515938]
[1765882669000,0.00247906,2952.3,2952.2,2.2395]
[1765882669199,0.0403,2952.1,2952.0,1.8011]
[1765882669502,0.0403,2952.1,2952.0,2.9339]
[1765882670000,0.04277906,2952.3,2952.2,2.2395]
[1765882670199,0.0403,2952.1,2952.0,2.9339]
[1765882670602,0.0285,2952.1,2952.0,2.9339]
[1765882670800,0.057,2952.1,2952.0,2.9339]
[1765882671000,0.0285,2952.1,2952.0,2.9339]
[1765882671199,3.26727906,2952.3,2952.2,2.2395]
[1765882671405,0.05947906,2952.3,2952.2,2.2395]
[1765882671603,0.00247906,2952.3,2952.2,2.2395]
[1765882672002,0.01927906,2952.3,2952.2,2.2395]
[1765882672207,0.00247906,2952.3,2952.2,2.2395]
[1765882678403,3.21027906,2952.3,2952.0,2.9339]
[1765882679109,3.21027906,2952.3,2952.2,2.2395]
[1765882681810,3.21027906,2952.3,2952.2,1.1067]
[1765882682000,3.37966906,2952.3,2952.0,1.8011]
[1765882682405,3.37966906,2952.3,2952.0,2.9339]
[1765882683412,0.1694,2952.1,2952.0,0.6944]
[1765882683605,0.1694,2952.1,2952.0,1.7347]
[1765882683807,0.1694,2952.1,2952.0,2.7691]
[1765882692917,1.68458906,2952.1,2952.0,0.6944]
[1765882693114,0.1694,2952.1,2952.0,2.7691]
[1765882694517,3.21027906,2952.3,2952.2,2.0747]
[1765882694710,3.21027906,2952.3,2952.2,3.58988906]
[1765882694913,0.00247906,2952.3,2952.2,2.0747]
[1765882695417,3.37966906,2952.3,2952.2,2.0747]
[1765882695616,0.1694,2952.1,2952.0,0.6944]
[1765882696019,0.1694,2952.1,2952.0,1.7347]
[1765882696222,0.1694,2952.1,2952.0,2.7691]
[1765882697522,0.1694,2952.1,2952.0,1.7347]
[1765882697923,0.1694,2952.1,2952.0,0.6944]
[1765882698923,0.1694,2952.1,2951.5,0.6944]
[1765882698924,0.16943,2951.6,2951.5,1.7347]
[1765882699224,3.37723,2951.6,2951.5,0.6944]
[1765882699417,3.37723,2951.6,2951.5,1.7347]
[1765882700412,4.89241906,2951.6,2951.5,0.6944]
[1765882700927,0.16946,2951.1,2951.0,1.82211116]
[1765882701124,3.37726,2951.1,2951.0,2.85651116]
[1765882702125,3.37726,2951.1,2951.0,0.78181116]
[1765882702717,3.37726,2951.1,2951.0,0.65391116]
[1765882703131,11.15026,2951.1,2951.0,0.65391116]
[1765882703522,11.15026,2951.1,2951.0,0.32842768]
[1765882704623,3.2078,2951.4,2951.3,2.0747]
[1765882704827,3.37723,2951.7,2951.6,2.0747]
[1765882705720,3.37723,2951.7,2951.5,0.6504]
[1765882705721,0.19923,2951.6,2951.5,0.6504]
[1765882706322,0.19923,2951.6,2951.5,1.6907]
[1765882706529,0.19923,2951.6,2951.5,2.7251]
[1765882707326,0.16943,2951.6,2951.5,2.7251]
[1765882707526,0.17373,2951.6,2951.5,2.7251]
[1765882707925,0.16943,2951.6,2951.5,2.7251]
[1765882710031,0.16943,2951.6,2951.5,0.6504]
[1765882711027,0.16943,2951.6,2951.5,1.6907]
[1765882711228,0.16943,2951.6,2951.5,0.6504]
[1765882712330,1.68461906,2951.6,2951.5,0.6504]
[1765882712530,1.68570543,2951.6,2951.5,0.6504]
[1765882715628,0.16946,2951.1,2951.0,0.33160562]
[1765882715930,4.89353543,2951.1,2951.0,0.33160562]
[1765882717933,0.16947,2950.9,2950.8,0.00509035]
[1765882718132,0.38112,2950.1,2950.0,2.6163]
[1765882718336,2.56519543,2950.1,2950.0,2.6163]
[1765882718529,1.04892,2950.1,2950.0,2.6163]
[1765882719032,1.05287432,2950.1,2950.0,0.65436292]
[1765882719433,1.05287432,2950.1,2950.0,1.67796292]
[1765882719637,2.56914975,2950.1,2950.0,0.65436292]
[1765882719826,2.56914975,2950.1,2950.0,0.00396292]
[1765882720637,2.56914975,2950.1,2950.0,1.61076292]
[1765882720841,2.56914975,2950.1,2950.0,2.55306292]
[1765882721741,18.51214975,2950.1,2950.0,2.55306292]
[1765882723340,18.51214975,2950.1,2950.0,1.61076292]
[1765882724045,18.51214975,2950.1,2950.0,0.58716292]
[1765882726243,16.99587432,2950.1,2950.0,0.58716292]
[1765882726442,18.51214975,2950.1,2950.0,1.61076292]
[1765882726943,2.56914975,2950.1,2950.0,1.61076292]
[1765882727131,18.51314975,2950.1,2950.0,1.61076292]
[1765882727334,18.51214975,2950.1,2950.0,1.61076292]
[1765882727643,18.51214975,2950.1,2950.0,0.58716292]
[1765882727844,18.51214975,2950.1,2950.0,1.61076292]
[1765882728145,18.51214975,2950.1,2950.0,0.58716292]
[1765882728347,18.51214975,2950.1,2950.0,0.00396292]
[1765882729542,18.51214975,2950.1,2950.0,0.58716292]
[1765882729944,0.00395432,2950.1,2950.0,4.06933835]
[1765882730637,0.17347432,2950.1,2950.0,2.55306292]
[1765882730836,0.84287432,2950.1,2950.0,2.55306292]
[1765882731239,0.17347432,2950.1,2950.0,2.55306292]
[1765882732137,3.21288147,2950.3,2950.2,1.9659]
[1765882733139,3.21702543,2950.3,2950.2,1.9659]
[1765882733747,3.38653543,2950.3,2950.2,1.9659]
[1765882734045,4.03963543,2950.3,2950.2,1.9659]
[1765882735239,4.03963543,2950.3,2950.0,1.61076292]
[1765882735240,0.78302,2950.1,2950.0,1.61076292]
[1765882735446,0.78302,2950.1,2950.0,2.55306292]
[1765882737250,0.16952,2950.1,2950.0,2.55306292]
[1765882737453,3.21702543,2950.3,2950.2,1.9659]
[1765882738050,3.38653543,2950.3,2950.2,1.9659]
[1765882741050,3.21702543,2950.3,2950.2,1.9659]
[1765882741350,5.35877,2951.0,2950.9,1.9659]
[1765882741755,5.96967,2951.0,2950.9,1.9659]
[1765882742155,5.97302196,2951.0,2950.9,1.9659]
[1765882742553,5.36212196,2951.0,2950.9,1.9659]
[1765882743147,0.00335196,2951.0,2950.9,3.48217543]
[1765882743956,0.00335196,2951.0,2950.9,6.68997543]
[1765882744361,0.00335196,2951.0,2950.6,4.2395]
[1765882744362,2.1669,2950.7,2950.6,4.2395]
[1765882744568,1.0506,2950.3,2950.2,3.2078]
[1765882744864,2.33642,2950.1,2950.0,0.00396292]
[1765882745053,3.85269543,2950.1,2950.0,0.00396292]
[1765882745448,2.33642,2950.1,2950.0,0.00396292]
[1765882747252,1.28582,2950.1,2950.0,2.10526292]
[1765882748256,2.33642,2950.1,2950.0,2.10526292]
[1765882748452,1.28582,2950.1,2950.0,2.10526292]
[1765882748760,0.16952,2950.1,2950.0,2.10526292]
[1765882749055,0.16952,2950.1,2950.0,2.71676292]
[1765882750562,2.33642,2950.1,2950.0,5.31306292]
[1765882750754,2.33642,2950.1,2950.0,2.10526292]
[1765882750958,1.28582,2950.1,2950.0,2.10526292]
[1765882751263,2.33642,2950.1,2950.0,0.00396292]
[1765882751766,2.33642,2950.1,2950.0,1.03566292]
[1765882751961,2.33642,2950.1,2950.0,2.10526292]
[1765882752169,2.33642,2950.1,2950.0,1.03566292]
[1765882753863,2.33642,2950.1,2950.0,2.10526292]
[1765882754662,2.33642,2950.1,2950.0,1.03566292]
[1765882755367,2.33642,2950.1,2950.0,2.10526292]
[1765882756466,2.33642,2950.1,2950.0,1.03566292]
[1765882756672,2.33642,2950.1,2950.0,2.10526292]
[1765882756874,2.33642,2950.1,2950.0,0.00396292]
[1765882760068,18.26842,2950.1,2950.0,1.03566292]
[1765882760266,18.26842,2950.1,2950.0,0.00396292]
[1765882760678,2.33642,2950.1,2950.0,0.00396292]
[1765882760972,18.26742,2950.1,2950.0,0.00396292]
[1765882761576,2.33642,2950.1,2950.0,0.00396292]
[1765882761875,9.05042,2950.1,2950.0,0.00396292]
[1765882762074,2.33642,2950.1,2950.0,0.00396292]
[1765882762268,18.26742,2950.1,2950.0,0.00396292]
[1765882763371,2.33642,2950.1,2950.0,0.00396292]
[1765882763566,9.04842,2950.1,2950.0,2.10526292]
[1765882763767,9.04842,2950.1,2950.0,1.03566292]
[1765882765875,9.04842,2950.1,2950.0,0.00396292]
[1765882766078,9.04842,2950.1,2950.0,2.10526292]
[1765882766275,9.04842,2950.1,2950.0,0.00396292]
[1765882766576,2.33642,2950.1,2950.0,1.03566292]
[1765882767276,2.33642,2950.1,2950.0,0.00396292]
[1765882768274,2.33642,2950.1,2950.0,2.10526292]
[1765882768477,3.2078,2950.2,2950.1,2.1013]
[1765882768673,3.2078,2950.2,2950.1,3.61894516]
[1765882768978,3.2078,2950.2,2950.1,2.1013]
[1765882768979,4.3241,2950.2,2950.1,2.1013]
[1765882769175,2.1669,2950.1,2950.0,2.10526292]
[1765882769577,2.33642,2950.1,2950.0,0.00396292]
[1765882769880,1.1163,2949.3,2949.2,5.3091]
[1765882770172,2.1669,2949.0,2948.9,5.3091]
[1765882770580,0.6711,2949.5,2948.9,5.3091]
[1765882770980,1.1163,2949.1,2949.0,2.7354]
[1765882771179,1.1163,2949.1,2949.0,2.1013]
[1765882771378,2.1669,2949.1,2949.0,2.1013]
[1765882772373,2.33648,2949.1,2949.0,2.1013]
[1765882773175,1.28588,2949.1,2949.0,2.1013]
[1765882773382,2.47388147,2949.5,2949.0,0.6069]
[1765882774678,1.9437,2949.1,2949.0,0.9741]
[1765882775182,2.68734147,2949.5,2949.4,1.9607]
[1765882777186,2.68734147,2949.5,2949.4,0.9741]
[1765882777579,0.9819,2949.1,2949.0,2.565]
[1765882777782,1.9437,2949.1,2949.0,1.9607]
[1765882777986,0.9819,2949.1,2949.0,1.9607]
[1765882778987,2.11326,2949.4,2949.3,1.9607]
[1765882779287,2.11326,2949.4,2949.3,0.9741]
[1765882779682,2.11326,2949.4,2949.3,1.9607]
[1765882780790,0.16956,2949.4,2949.3,1.9607]
[1765882781194,1.15146,2949.4,2949.3,1.9607]
[1765882782293,0.16956,2949.4,2949.3,1.9607]
[1765882782683,0.00508147,2949.5,2949.4,1.9607]
[1765882785392,0.98698147,2949.5,2949.4,1.9607]
[1765882785595,1.9437,2949.3,2949.2,4.1819]
[1765882785889,0.9819,2949.3,2949.2,5.1685]
[1765882786091,2.68733147,2949.5,2949.4,1.9607]
[1765882789786,2.5127,2949.0,2948.9,0.98165372]
[1765882790103,2.68228,2949.0,2948.9,1.96825372]
[1765882790285,2.68228,2949.0,2948.9,0.98165372]
[1765882790691,2.68228,2949.0,2948.9,1.96825372]
[1765882790892,2.68228,2949.0,2948.9,0.00755372]
[1765882791095,5.89008,2949.0,2948.9,0.00755372]
[1765882791789,0.9819,2948.3,2948.2,5.1685]
[1765882791993,1.9437,2948.3,2948.2,5.1685]
[1765882792693,1.94802805,2948.3,2948.2,5.17264559]
[1765882793295,0.98622805,2948.3,2948.2,5.17264559]
[1765882793593,1.94802805,2948.3,2948.2,5.17264559]
[1765882800398,0.98622805,2948.3,2948.2,5.17264559]
[1765882800598,0.00432805,2948.3,2948.2,6.69024791]
[1765882801192,1.94802805,2948.3,2948.2,3.21194559]
[1765882801496,2.11333,2948.1,2948.0,0.00508147]
[1765882801697,0.00432805,2948.3,2948.2,1.9607]
[1765882801895,4.1897,2949.1,2949.0,1.9607]
[1765882802089,5.1515,2949.1,2949.0,1.9607]
[1765882802402,3.2078,2949.1,2949.0,2.4524]
[1765882802697,1.9437,2949.1,2949.0,0.9741]
[1765882802893,3.2078,2949.4,2949.3,1.9607]
[1765882803096,0.00508147,2949.5,2949.3,1.9607]
[1765882803097,0.00508147,2949.5,2949.4,1.9607]
[1765882803292,0.00832923,2949.5,2949.4,1.9607]
[1765882803496,0.99022923,2949.5,2949.4,1.9607]
[1765882803892,1.8264,2949.3,2949.2,4.0819]
[1765882804093,1.8264,2949.3,2949.2,3.2078]
[1765882804395,1.8264,2949.1,2949.0,0.00333447]
[1765882804601,0.16956,2949.3,2949.2,1.7212]
[1765882804799,0.9098,2949.1,2949.0,4.93233447]
[1765882805005,0.52862923,2949.5,2949.4,0.8741]
[1765882805192,0.91812923,2949.5,2949.4,1.7212]
[1765882805795,1.83472923,2949.5,2949.4,1.7212]
[1765882806107,0.91812923,2949.5,2949.4,1.7212]
[1765882806308,1.8264,2949.1,2949.0,3.21113447]
[1765882806503,0.9098,2948.1,2948.0,4.93408147]
[1765882806808,1.8264,2948.1,2948.0,3.21288147]
[1765882807403,0.16963,2948.2,2948.1,1.7212]
[1765882807607,2.3467,2948.5,2948.4,0.8741]
[1765882807806,2.3467,2948.5,2948.0,3.21715123]
[1765882808008,0.9098,2948.1,2948.0,4.93835123]
[1765882808209,0.5203,2948.5,2948.0,4.93835123]
[1765882808405,0.5203,2948.5,2948.4,0.8741]
[1765882808607,5.2038,2948.7,2948.6,0.8741]
[1765882808810,1.4301,2949.0,2948.9,0.8741]
[1765882809003,2.3467,2949.0,2948.5,3.2078]
[1765882809307,0.68988,2949.0,2948.5,4.929]
[1765882809507,2.51628,2949.0,2948.9,0.8741]
[1765882809905,2.51628,2949.0,2948.5,3.2078]
[1765882810300,1.8264,2948.6,2948.5,4.0819]
[1765882810712,0.68988,2949.0,2948.5,4.929]
[1765882810907,1.59968,2949.0,2948.9,0.8741]
[1765882811106,2.51628,2949.0,2948.5,3.7529]
[1765882811306,0.9098,2948.6,2948.5,4.929]
[1765882812012,0.16959,2948.9,2948.5,4.929]
[1765882812199,1.99599,2948.9,2948.8,0.8741]
[1765882812620,1.99599,2948.9,2948.8,1.7212]
[1765882812821,0.16959,2948.9,2948.8,1.7212]
[1765882813020,1.07939,2948.9,2948.8,1.7212]
[1765882813921,0.9098,2949.0,2948.9,1.7212]
[1765882814118,2.3467,2949.0,2948.9,0.8741]
[1765882814423,2.3467,2949.0,2948.9,1.7212]
[1765882814623,3.37737,2949.2,2949.1,0.8741]
[1765882814921,5.20377,2949.2,2949.1,0.8741]
[1765882815130,3.37737,2949.2,2949.1,1.7212]
[1765882815422,4.28717,2949.2,2949.1,1.7212]
[1765882815617,3.37737,2949.2,2949.1,1.7212]
[1765882815813,3.2078,2949.2,2949.1,1.7212]
[1765882816019,0.00832923,2949.5,2949.4,1.7212]
[1765882816421,0.91812923,2949.5,2949.4,1.7212]
[1765882816721,1.8264,2949.2,2949.1,3.2078]
[1765882816924,1.8264,2949.2,2948.4,3.2078]
[1765882816925,1.996,2948.8,2948.4,3.2078]
[1765882817225,2.3467,2948.5,2948.4,4.0819]
[1765882817524,2.3467,2948.5,2948.4,3.2078]
[1765882818220,1.0794,2948.7,2948.6,1.7212]
[1765882818421,1.996,2948.7,2948.6,0.8741]
[1765882818622,2.3467,2948.5,2948.4,3.2078]
[1765882818826,2.51631,2948.5,2948.0,3.21715123]
[1765882819016,0.16961,2948.5,2948.4,1.7212]
[1765882819218,1.8264,2948.4,2948.3,4.0819]
[1765882820121,1.07941,2948.5,2948.4,1.7212]
[1765882820521,1.99601,2948.5,2948.4,1.7212]
[1765882820717,0.16961,2948.5,2948.4,1.7212]
[1765882820920,1.07941,2948.5,2948.4,1.7212]
[1765882821227,0.16961,2948.5,2948.4,1.7212]
[1765882822723,3.2078,2949.1,2948.7,0.8471]
[1765882822929,4.1176,2949.1,2949.0,1.7212]
[1765882823124,5.20378,2949.1,2949.0,0.8741]
[1765882823322,5.20378,2949.1,2948.9,0.8741]
[1765882823323,2.3467,2949.0,2948.9,0.8741]
[1765882823726,3.37738,2949.1,2949.0,1.7212]
[1765882824128,5.20378,2949.1,2948.6,3.2078]
[1765882824323,2.3467,2949.0,2948.9,0.8741]
[1765882824725,2.51628,2949.0,2948.6,3.2078]
[1765882824923,2.51628,2949.0,2948.9,1.7212]
[1765882825226,1.07938,2949.0,2948.9,1.7212]
[1765882826235,0.16958,2949.0,2948.9,1.7212]
[1765882826427,1.07938,2949.0,2948.9,1.7212]
[1765882826732,0.9098,2948.7,2948.6,4.929]
[1765882827229,0.68988,2949.0,2948.6,4.0549]
[1765882827429,2.51628,2949.0,2948.9,1.7212]
[1765882827936,0.16958,2949.0,2948.9,1.7212]
[1765882828125,2.51628,2949.0,2948.9,1.7212]
[1765882829437,0.9098,2948.7,2948.6,4.929]
[1765882830039,1.99599,2948.9,2948.8,1.7212]
[1765882830736,1.07939,2948.9,2948.8,1.7212]
[1765882831338,1.91719,2948.9,2948.8,0.8741]
[1765882832034,1.91719,2948.9,2948.8,1.7182]
[1765882832341,1.6835,2948.7,2948.6,4.8361]
[1765882833141,0.8457,2948.7,2948.6,4.8361]
[1765882833442,1.5693,2948.3,2948.2,4.8365]
[1765882833640,0.7932,2948.3,2948.2,4.8365]
[1765882833835,1.5693,2948.3,2948.2,4.8365]
[1765882834034,1.5693,2948.3,2948.2,4.0327]
[1765882834245,1.5693,2948.3,2948.2,4.8365]
[1765882834434,0.7932,2948.3,2948.2,4.8365]
[1765882834934,0.96282,2948.4,2948.3,1.6287]
[1765882835139,1.73892,2948.4,2948.3,1.6287]
[1765882836039,4.94669,2948.8,2948.7,0.8249]
[1765882836343,1.5693,2948.3,2948.2,4.8365]
[1765882836743,1.73892,2948.3,2948.2,4.0327]
[1765882837044,1.73892,2948.3,2948.2,3.2078]
[1765882837239,1.73892,2948.3,2948.2,4.0327]
[1765882837439,1.73892,2948.3,2948.2,4.8365]
[1765882837641,1.73892,2948.3,2948.2,0.8249]
[1765882839245,1.5693,2948.1,2948.0,0.83425123]
[1765882839442,1.73893,2948.1,2948.0,0.00935123]
[1765882839946,1.73893,2948.1,2948.0,0.83425123]
[1765882840146,1.73893,2948.1,2948.0,1.63805123]
[1765882841440,1.73893,2948.1,2948.0,0.83425123]
[1765882841635,1.73893,2948.1,2948.0,0.00935123]
[1765882842239,1.5693,2947.2,2947.1,4.8365]
[1765882842536,1.73898,2947.2,2947.1,4.8365]
[1765882842743,2.074,2947.5,2947.4,1.6287]
[1765882843042,0.7932,2947.5,2947.4,1.6287]
[1765882843243,0.79693089,2947.5,2947.4,1.63187819]
[1765882843546,1.57303089,2947.5,2947.4,1.63187819]
[1765882843740,2.24740089,2947.5,2947.4,0.00317819]
[1765882844048,2.24740089,2947.5,2947.4,0.82807819]
[1765882844446,0.17340089,2947.5,2947.4,1.63187819]
[1765882844745,0.7932,2946.6,2946.5,4.8365]
[1765882844944,0.6744,2947.0,2946.5,4.8365]
[1765882844945,0.1697,2946.9,2946.5,4.8365]
[1765882845337,1.5693,2946.6,2946.5,3.2078]
[1765882845745,1.5693,2946.6,2946.5,3.21172806]
[1765882845944,1.73902,2946.6,2946.5,3.21172806]
[1765882846649,1.73902,2946.6,2946.5,0.00392806]
[1765882847249,4.94682,2946.6,2946.5,0.00392806]
[1765882848645,11.47482,2946.6,2946.5,1e-08]
[1765882848844,4.94682,2946.6,2946.5,1e-08]
[1765882851341,4.94682,2946.6,2946.5,1.62870001]
[1765882851945,4.17072,2946.6,2946.5,1.62870001]
[1765882852252,0.16972,2946.6,2946.5,1.62870001]
[1765882852453,2.074,2947.0,2946.9,1.6287]
[1765882852849,0.16969,2947.1,2947.0,1.6287]
[1765882853050,1.73899,2947.1,2947.0,0.8249]
[1765882853348,0.96289,2947.1,2947.0,1.6287]
[1765882853745,0.1697,2946.9,2946.5,1e-08]
[1765882854150,0.9629,2946.9,2946.8,1.6287]
[1765882854346,1.739,2946.9,2946.8,1.6287]
[1765882855057,0.9629,2946.9,2946.8,1.6287]
[1765882855554,1.739,2946.9,2946.8,1.6287]
[1765882855756,3.2078,2947.4,2946.7,3.2078]
[1765882855757,3.2078,2947.4,2946.9,1.6287]
[1765882855959,3.37747,2947.4,2946.9,1.6287]
[1765882856151,1.73898,2947.3,2946.7,3.2078]
[1765882856554,0.7932,2946.8,2946.7,4.0327]
[1765882856857,1.5693,2946.8,2946.7,4.8365]
[1765882857456,0.7932,2946.8,2946.7,4.8365]
[1765882857655,2.074,2947.0,2946.9,0.8249]
[1765882857853,2.074,2947.0,2946.9,1.6287]
[1765882858053,0.96289,2947.1,2947.0,1.6287]
[1765882858558,1.73899,2947.1,2947.0,1.6287]
[1765882859058,0.96289,2947.1,2947.0,1.6287]
[1765882859556,4.7771,2947.4,2947.3,1.6287]
[1765882859757,4.94677,2947.4,2947.3,1.6287]
[1765882859952,3.2078,2947.4,2947.3,1.6287]
[1765882860154,1.57303089,2947.5,2947.4,1.6287]
[1765882860354,2.07773089,2947.5,2947.4,1.6287]
[1765882861055,0.00373089,2947.5,2947.4,1.6287]
[1765882861255,0.79693089,2947.5,2947.4,1.6287]
[1765882861460,0.00373089,2947.5,2947.4,1.6287]
[1765882862357,2.24740089,2947.5,2947.0,3.2078]
[1765882862548,1.5693,2947.1,2947.0,3.2078]
[1765882862750,0.50843089,2947.5,2946.7,4.0327]
[1765882862751,1.5693,2946.8,2946.7,4.0327]
[1765882863354,0.16972,2946.6,2946.5,1e-08]
[1765882864549,3.7125,2947.0,2946.5,1.45870001]
[1765882864756,1.4895,2946.7,2946.6,3.2078]
[1765882864950,3.2078,2946.9,2946.5,1e-08]
[1765882865156,1.65921,2946.7,2946.6,1.4587]
[1765882865462,1.65921,2946.7,2946.5,1e-08]
[1765882865664,3.2078,2947.2,2946.5,1e-08]
[1765882865665,3.2078,2947.2,2947.1,1.4587]
[1765882865868,3.21153089,2947.5,2947.4,1.4587]
[1765882866163,5.13873089,2947.5,2946.8,3.2078]
[1765882866363,5.13873089,2947.5,2946.9,40.8]
[1765882866766,5.13873089,2947.5,2947.4,0.7175]
[1765882866960,0.4377,2947.0,2946.6,2.28134837]
[1765882867163,0.4377,2947.0,2945.2,0.7175]
[1765882867164,0.4377,2945.5,2945.2,0.7175]
[1765882867468,1.1568,2946.0,2945.9,0.7175]
[1765882867959,5.135,2946.0,2945.0,3.6173]
[1765882868161,1.4945907,2945.8,2945.0,3.62168657]
[1765882869266,1.6643607,2945.8,2945.0,3.62168657]
[1765882871172,1.65928,2945.5,2945.4,0.7175]
[1765882871360,2.09698,2945.5,2945.4,0.7175]
[1765882871561,2.09698,2945.5,2945.0,3.62168657]
[1765882871863,2.09698,2945.5,2945.2,1.4587]
[1765882871864,0.1698,2945.3,2945.2,1.4587]
[1765882872063,0.17269318,2945.3,2945.2,1.4587]
[1765882872461,0.89179318,2945.3,2945.2,1.4587]
[1765882872661,0.00289318,2945.3,2945.2,1.4587]
[1765882873368,0.72199318,2945.3,2945.2,1.4587]
[1765882873668,0.7191,2945.1,2945.0,4.67088657]
[1765882873871,1.49239318,2945.3,2945.2,0.7175]
[1765882874268,1.4895,2945.1,2945.0,3.92968657]
[1765882874471,0.7191,2945.1,2945.0,4.67088657]
[1765882874964,1.65931,2945.1,2945.0,3.92968657]
[1765882875471,0.88891,2945.1,2945.0,4.67088657]
[1765882875666,0.16981,2945.1,2945.0,4.67088657]
[1765882876067,1.65931,2945.1,2945.0,4.67088657]
[1765882876375,1.65931,2945.1,2945.0,0.00438657]
[1765882876570,1.65931,2945.1,2945.0,0.72188657]
[1765882876763,0.16981,2945.1,2945.0,1.93148657]
[1765882877169,0.00289318,2945.3,2945.2,1.4587]
[1765882877368,2.8843092,2945.5,2945.4,1.4587]
[1765882877562,0.0050907,2945.8,2945.7,1.4587]
[1765882877864,0.7241907,2945.8,2945.7,3.9253]
[1765882878563,1.49772346,2945.8,2945.7,3.9253]
[1765882878762,0.00822346,2945.8,2945.7,4.2363]
[1765882879168,1.49772346,2945.8,2945.7,3.9253]
[1765882879371,0.72732346,2945.8,2945.7,4.6665]
[1765882879575,0.00822346,2945.8,2945.7,4.6665]
[1765882882661,2.346e-05,2945.8,2945.7,4.6665]
[1765882882968,3.6455,2946.5,2945.7,9.949]
[1765882883171,3.6455,2946.5,2946.4,1.4587]
[1765882884073,3.6486002,2946.5,2946.4,1.4587]
[1765882884275,5.3078302,2946.5,2946.4,1.4587]
[1765882884466,5.3078302,2946.5,2946.2,0.0050907]
[1765882884667,3.6486002,2946.5,2946.4,1.4587]
[1765882884870,0.0031002,2946.5,2946.4,1.4587]
[1765882887874,2e-07,2946.5,2946.4,1.4587]
[1765882890779,3.2078,2947.7,2947.4,1.3386]
[1765882890975,3.2078,2947.7,2947.6,1.3386]
[1765882891775,3.21040405,2947.7,2947.6,1.34124061]
[1765882893576,3.92950405,2947.7,2947.6,1.34124061]
[1765882893978,4.99000405,2947.7,2947.6,1.34124061]
[1765882894178,3.92950405,2947.7,2947.6,1.34124061]
[1765882894482,5.15966405,2947.7,2947.6,0.00264061]
[1765882895570,5.15966405,2947.7,2947.6,1.24124061]
[1765882895882,5.15966405,2947.7,2947.6,0.62764061]
[1765882896980,5.15966405,2947.7,2947.6,0.00264061]
[1765882897876,2.1401,2947.1,2947.0,3.2078]
[1765882898070,2.30979,2947.1,2947.0,3.2078]
[1765882898778,0.16969,2947.1,2947.0,4.3785]
[1765882898987,2.30979,2947.1,2947.0,4.3829062]
[1765882899179,2.30979,2947.1,2947.0,3.2122062]
[1765882900584,2.30979,2947.1,2947.0,4.3496062]
[1765882900785,2.8124,2947.5,2947.4,0.5577]
[1765882901288,0.6723,2947.5,2947.4,1.1154]
[1765882901586,1.7519,2947.5,2947.4,1.1154]
[1765882902079,2.8124,2947.5,2947.4,0.5465]
[1765882902483,2.8124,2947.5,2947.4,1.093]
[1765882902684,1.7519,2947.5,2947.4,1.093]
[1765882902884,2.8124,2947.5,2947.4,1.093]
[1765882903482,2.8124,2947.5,2947.0,3.2122062]
[1765882903787,0.00260405,2947.7,2947.6,1.0486]
[1765882904586,1.08220405,2947.7,2947.6,1.0486]
[1765882905185,0.6723,2947.5,2947.4,3.2078]
[1765882905490,0.6723,2947.5,2947.4,4.2122]
[1765882907391,0.00260405,2947.7,2947.6,0.9825]
[1765882908988,2.14270405,2947.7,2947.6,0.9825]
[1765882909988,2.8124,2947.5,2947.4,3.2078]
[1765882910784,2.8124,2947.5,2947.4,3.6555]
[1765882912886,1.7519,2947.5,2947.4,4.1032]
[1765882914391,0.6723,2947.5,2947.4,4.1032]
[1765882914894,1.7519,2947.5,2947.4,4.1032]
[1765882915896,0.6723,2947.5,2947.4,4.1032]
[1765882916791,0.17226405,2947.7,2947.6,0.767]
[1765882919486,0.00260405,2947.7,2947.6,0.767]
[1765882919690,0.0050907,2947.9,2947.8,0.7036]
[1765882919888,0.0050907,2947.9,2947.8,3.9114]
[1765882920689,0.0081105,2947.9,2947.8,44.7114]
[1765882920896,0.0081105,2947.9,2947.8,3.9114]
[1765882922200,1.0877105,2947.9,2947.8,3.9114]
[1765882922703,0.0081105,2947.9,2947.8,3.9114]
[1765882923097,0.0081105,2947.9,2947.8,0.7036]
[1765882923400,2.30976,2947.6,2947.5,3.2078]
[1765882925498,2.30976,2947.6,2947.5,3.5183]
[1765882928300,2.30976,2947.6,2947.5,0.3105]
[1765882929402,1.9468,2947.4,2947.3,3.7455]
[1765882929704,1.9468,2947.4,2947.3,3.4971]
[1765882930000,1.9468,2947.4,2947.3,3.7455]
[1765882930910,3.2159105,2947.9,2947.4,0.4764]
[1765882931202,1.9468,2947.4,2947.3,3.2078]
[1765882931405,1.9468,2947.4,2947.3,3.446]
[1765882931595,1.9468,2947.4,2947.3,3.4359]
[1765882931795,1.9468,2947.4,2947.3,3.664]
[1765882932103,1.9468,2947.4,2947.3,3.2078]
[1765882932299,2.11647,2947.4,2947.3,3.2078]
[1765882933801,2.11647,2947.4,2947.3,3.4359]
[1765882934601,2.11647,2947.4,2947.3,3.2078]
[1765882935397,1.9468,2947.1,2947.0,0.2024062]
[1765882936100,1.9468,2947.1,2947.0,0.0044062]
[1765882936301,5.1546,2947.1,2947.0,0.0044062]
[1765882936502,5.32429,2947.1,2947.0,0.0044062]
[1765882938401,1.9468,2946.3,2946.2,0.0050907]
[1765882938605,1.9468,2946.3,2945.9,0.1584]
[1765882938606,2.5127,2946.0,2945.9,0.1584]
[1765882939110,2.5127,2946.0,2945.5,40.8]
[1765882939306,2.5127,2946.0,2945.5,40.80308394]
[1765882939609,2.5177907,2946.0,2945.5,40.80817464]
[1765882939911,0.9667,2945.6,2945.5,40.80817464]
[1765882940109,0.00295115,2945.6,2945.5,0.30517464]
[1765882940912,0.96965115,2945.6,2945.5,0.30517464]
[1765882941512,1.94975115,2945.6,2945.5,0.30517464]
[1765882941715,0.96965115,2945.6,2945.5,0.30517464]
[1765882941906,0.00295115,2945.6,2945.5,0.30517464]
[1765882942604,1.94975115,2945.6,2945.5,0.15667464]
[1765882942916,1.94975115,2945.6,2945.5,0.27737464]
[1765882943408,0.96965115,2945.6,2945.5,0.27737464]